fUSD/lending_fUSD_20250923
["ID","MTS","AMOUNT","RATE_DAILY","PERIOD"]
[387173101,1758606654865,-1136.38,0.00020218,2]
[387173102,1758606654875,-2423.02,0.00020218,2]
[387173103,1758606654886,-150.0,0.00020226,4]
[387173104,1758606654895,-517.48116792,0.00020228,2]
[387173105,1758606654905,-560.23,0.00020228,2]
[387173106,1758606654915,-560.23,0.00020228,2]
[387173107,1758606654924,-560.23,0.00020228,2]
[387173108,1758606654933,-500.0,0.00020228,2]
[387173109,1758606654943,-500.0,0.00020228,2]
[387173110,1758606654953,-500.0,0.00020228,2]
[387173111,1758606654963,-694.79,0.00020228,2]
[387173112,1758606654973,-694.79,0.00020228,2]
[387173113,1758606654983,-694.79,0.00020228,2]
[387173114,1758606654992,-500.0,0.00020228,2]
[387173115,1758606655002,-500.0,0.00020228,2]
[387173116,1758606655012,-500.0,0.00020228,2]
[387173117,1758606655021,-500.0,0.00020228,2]
[387173118,1758606655031,-500.0,0.00020228,2]
[387173119,1758606655040,-500.0,0.00020228,2]
[387173120,1758606655050,-500.0,0.00020228,2]
[387173121,1758606655059,-943.76,0.00020228,2]
[387173122,1758606655069,-943.76,0.00020228,2]
[387173123,1758606655078,-943.76,0.00020228,2]
[387173124,1758606655088,-12656.36771095,0.00020229,2]
[387173125,1758606655097,-185.0,0.00020248,2]
[387173126,1758606655107,-400.0,0.00020249,2]
[387173127,1758606655116,-397.74680009,0.00020249,2]
[387173128,1758606655125,-400.0,0.00020249,2]
[387173129,1758606655135,-401.96672576,0.00020249,2]
[387173130,1758606655144,-563.0,0.00020249,2]
[387173131,1758606655154,-400.0,0.00020249,2]
[387173132,1758606655164,-400.0,0.00020249,2]
[387173133,1758606655173,-400.0,0.00020249,2]
[387173134,1758606655183,-454.75,0.00020249,2]
[387173135,1758606655192,-402.29041973,0.00020249,2]
[387173136,1758606655202,-400.0,0.00020249,2]
[387173137,1758606655212,-604.44,0.00020249,2]
[387173138,1758606655221,-400.0,0.00020249,2]
[387173139,1758606655231,-533.49,0.00020249,2]
[387173140,1758606655240,-400.0,0.00020249,2]
[387173141,1758606655250,-694.1,0.00020249,2]
[387173142,1758606655260,-400.0,0.00020249,2]
[387173143,1758606655269,-410.03644212,0.00020249,2]
[387173144,1758606655278,-400.0,0.00020249,2]
[387173145,1758606655287,-400.0,0.00020249,2]
[387173146,1758606655297,-422.59,0.00020249,2]
[387173147,1758606655306,-400.0,0.00020249,2]
[387173148,1758606655316,-717.78,0.00020249,2]
[387173149,1758606655398,-400.0,0.00020249,2]
[387173150,1758606655408,-406.92216705,0.00020249,2]
[387173151,1758606655417,-400.0,0.00020249,2]
[387173152,1758606655427,-431.15,0.00020249,2]
[387173153,1758606655436,-458.63455513,0.00020249,2]
[387173154,1758606655445,-428.31395364,0.00020249,2]
[387173155,1758606655455,-400.0,0.00020249,2]
[387173156,1758606655465,-427.27,0.00020249,2]
[387173157,1758606655474,-400.0,0.00020249,2]
[387173158,1758606655483,-614.75,0.00020249,2]
[387173159,1758606655492,-400.0,0.00020249,2]
[387173160,1758606655502,-411.20349881,0.00020249,2]
[387173161,1758606655511,-400.0,0.00020249,2]
[387173162,1758606655521,-400.0,0.00020249,2]
[387173163,1758606655530,-404.24121878,0.00020249,2]
[387173164,1758606655539,-669.49,0.00020249,2]
[387173165,1758606655549,-400.0,0.00020249,2]
[387173166,1758606655558,-400.0,0.00020249,2]
[387173167,1758606655568,-400.0,0.00020249,2]
[387173168,1758606655576,-400.0,0.00020249,2]
[387173169,1758606655586,-413.10042918,0.00020249,2]
[387173170,1758606655596,-397.93842106,0.00020249,2]
[387173171,1758606655605,-400.0,0.00020249,2]
[387173172,1758606655614,-400.0,0.00020249,2]
[387173173,1758606655624,-400.0,0.00020249,2]
[387173174,1758606655633,-418.8,0.00020249,2]
[387173175,1758606655642,-573.35,0.00020249,2]
[387173176,1758606655652,-400.0,0.00020249,2]
[387173177,1758606655661,-403.2,0.00020249,2]
[387173178,1758606655670,-400.0,0.00020249,2]
[387173179,1758606655680,-400.0,0.00020249,2]
[387173180,1758606655689,-400.0,0.00020249,2]
[387173181,1758606655698,-400.0,0.00020249,2]
[387173182,1758606655709,-400.0,0.00020249,2]
[387173183,1758606655718,-498.07559032,0.00020249,2]
[387173184,1758606655728,-685.05,0.00020249,2]
[387173185,1758606655737,-400.98491007,0.00020249,2]
[387173186,1758606655746,-403.09148702,0.00020249,2]
[387173187,1758606655756,-400.0,0.00020249,2]
[387173188,1758606655765,-402.36338266,0.00020249,2]
[387173189,1758606655775,-435.99,0.00020249,2]
[387173190,1758606655784,-400.0,0.00020249,2]
[387173191,1758606655796,-400.0,0.00020249,2]
[387173192,1758606655806,-592.9,0.00020249,2]
[387173193,1758606655816,-400.0,0.00020249,2]
[387173194,1758606655825,-528.93,0.00020249,2]
[387173195,1758606655835,-402.1375787,0.00020249,2]
[387173196,1758606655844,-796.37,0.00020249,2]
[387173197,1758606655853,-400.0,0.00020249,2]
[387173198,1758606655863,-461.3,0.00020249,2]
[387173199,1758606655873,-400.0,0.00020249,2]
[387173200,1758606655883,-400.0,0.00020249,2]
[387173201,1758606655893,-400.0,0.00020249,2]
[387173202,1758606655903,-400.0,0.00020249,2]
[387173203,1758606655913,-400.0,0.00020249,2]
[387173204,1758606655922,-400.0,0.00020249,2]
[387173205,1758606655932,-400.0,0.00020249,2]
[387173206,1758606655941,-551.65,0.00020249,2]
[387173207,1758606655952,-445.76,0.00020249,2]
[387173208,1758606655962,-620.26,0.00020249,2]
[387173209,1758606655971,-400.0,0.00020249,2]
[387173210,1758606655980,-474.03,0.00020249,2]
[387173211,1758606655990,-400.0,0.00020249,2]
[387173212,1758606655999,-400.0,0.00020249,2]
[387173213,1758606656008,-400.0,0.00020249,2]
[387173214,1758606656017,-400.0,0.00020249,2]
[387173215,1758606656027,-400.0,0.00020249,2]
[387173216,1758606656035,-400.0,0.00020249,2]
[387173217,1758606656045,-1134.69,0.00020249,2]
[387173218,1758606656054,-553.2,0.00020249,2]
[387173219,1758606656063,-400.0,0.00020249,2]
[387173220,1758606656073,-400.0,0.00020249,2]
[387173221,1758606656082,-560.87,0.00020249,2]
[387173222,1758606656091,-669.97,0.00020249,2]
[387173223,1758606656101,-518.47,0.00020249,2]
[387173224,1758606656111,-603.36,0.00020249,2]
[387173225,1758606656120,-507.24,0.00020249,2]
[387173226,1758606656129,-1226.65,0.00020249,2]
[387173227,1758606656139,-400.0,0.00020249,2]
[387173228,1758606656148,-510.08,0.00020249,2]
[387173229,1758606656157,-400.0,0.00020249,2]
[387173230,1758606656167,-2244.82,0.00020249,2]
[387173231,1758606656176,-400.0,0.00020249,2]
[387173232,1758606656185,-400.0,0.00020249,2]
[387173233,1758606656195,-3137.54,0.00020249,2]
[387173234,1758606656204,-400.0,0.00020249,2]
[387173235,1758606656216,-3479.82,0.00020249,2]
[387173236,1758606656224,-478.17,0.00020249,2]
[387173237,1758606656234,-400.0,0.00020249,2]
[387173238,1758606656243,-1313.4,0.00020249,2]
[387173239,1758606656253,-400.0,0.00020249,2]
[387173240,1758606656262,-400.0,0.00020249,2]
[387173241,1758606656272,-766.42,0.00020249,2]
[387173242,1758606656282,-400.0,0.00020249,2]
[387173243,1758606656292,-631.18,0.00020249,2]
[387173244,1758606656301,-151.0,0.00020249,2]
[387173245,1758606656310,-157.726619,0.00020249,2]
[387173246,1758606656319,-151.0,0.0002025,2]
[387173247,1758606656328,-560.23,0.00020253,2]
[387173248,1758606656338,-500.0,0.00020253,2]
[387173249,1758606656347,-502.61,0.00020253,2]
[387173250,1758606656357,-502.61,0.00020253,2]
[387173251,1758606656367,-694.79,0.00020253,2]
[387173252,1758606656376,-500.0,0.00020253,2]
[387173253,1758606656385,-500.0,0.00020253,2]
[387173254,1758606656395,-943.76,0.00020253,2]
[387173255,1758606656404,-300244.84061874,0.00020253,2]
[387173256,1758606656414,-964.46171494,0.00020254,2]
[387173257,1758606656423,-151.0,0.00020254,2]
[387173258,1758606656431,-197.55628574,0.00020254,2]
[387173259,1758606656441,-1011.7270749,0.00020254,2]
[387173260,1758606656451,-470.21,0.00020268,2]
[387173261,1758606656461,-400.0,0.00020268,2]
[387173262,1758606656471,-400.0,0.00020268,2]
[387173263,1758606656481,-400.0,0.00020268,2]
[387173264,1758606656491,-400.0,0.00020268,2]
[387173265,1758606656501,-400.0,0.00020268,2]
[387173266,1758606656511,-242.13508315,0.00020268,2]
[387173267,1758606656521,-403.43378324,0.00020268,2]
[387173268,1758606656531,-400.0,0.00020268,2]
[387173269,1758606656540,-403.5875277,0.00020268,2]
[387173270,1758606656549,-509.35425862,0.00020268,2]
[387173271,1758606656559,-400.0,0.00020268,2]
[387173272,1758606656568,-479.31,0.00020268,2]
[387173273,1758606656577,-400.0,0.00020268,2]
[387173274,1758606656586,-626.98,0.00020268,2]
[387173275,1758606656596,-230.92740837,0.00020268,2]
[387173276,1758606656606,-407.19523311,0.00020268,2]
[387173277,1758606656615,-400.0,0.00020268,2]
[387173278,1758606656624,-400.0,0.00020268,2]
[387173279,1758606656634,-600.75,0.00020268,2]
[387173280,1758606656643,-400.0,0.00020268,2]
[387173281,1758606656653,-595.41,0.00020268,2]
[387173282,1758606656662,-400.0,0.00020268,2]
[387173283,1758606656671,-400.0,0.00020268,2]
[387173284,1758606656681,-400.0,0.00020268,2]
[387173285,1758606656691,-400.0,0.00020268,2]
[387173286,1758606656700,-400.0,0.00020268,2]
[387173287,1758606656711,-400.0,0.00020268,2]
[387173288,1758606656720,-400.0,0.00020268,2]
[387173289,1758606656730,-609.2,0.00020268,2]
[387173290,1758606656739,-400.0,0.00020268,2]
[387173291,1758606656748,-400.0,0.00020268,2]
[387173292,1758606656757,-400.0,0.00020268,2]
[387173293,1758606656767,-400.0,0.00020268,2]
[387173294,1758606656776,-400.0,0.00020268,2]
[387173295,1758606656785,-400.0,0.00020268,2]
[387173296,1758606656796,-400.0,0.00020268,2]
[387173297,1758606656809,-572.39,0.00020268,2]
[387173298,1758606656818,-400.0,0.00020268,2]
[387173299,1758606656828,-400.0,0.00020268,2]
[387173300,1758606656837,-710.43,0.00020268,2]
[387173301,1758606656847,-400.0,0.00020268,2]
[387173302,1758606656856,-405.04354866,0.00020268,2]
[387173303,1758606656865,-633.16,0.00020268,2]
[387173304,1758606656875,-400.0,0.00020268,2]
[387173305,1758606656884,-400.0,0.00020268,2]
[387173306,1758606656894,-473.7,0.00020268,2]
[387173307,1758606656903,-400.0,0.00020268,2]
[387173308,1758606656912,-400.0,0.00020268,2]
[387173309,1758606656922,-719.16,0.00020268,2]
[387173310,1758606656931,-400.0,0.00020268,2]
[387173311,1758606656940,-407.66,0.00020268,2]
[387173312,1758606656949,-619.74,0.00020268,2]
[387173313,1758606656959,-462.97,0.00020268,2]
[387173314,1758606656968,-400.0,0.00020268,2]
[387173315,1758606656977,-637.23,0.00020268,2]
[387173316,1758606656986,-474.07,0.00020268,2]
[387173317,1758606656995,-872.07,0.00020268,2]
[387173318,1758606657004,-400.0,0.00020268,2]
[387173319,1758606657013,-400.0,0.00020268,2]
[387173320,1758606657023,-1253.57,0.00020268,2]
[387173321,1758606657033,-400.0,0.00020268,2]
[387173322,1758606657042,-400.0,0.00020268,2]
[387173323,1758606657051,-702.37,0.00020268,2]
[387173324,1758606657060,-400.0,0.00020268,2]
[387173325,1758606657069,-400.0,0.00020268,2]
[387173326,1758606657079,-400.0,0.00020268,2]
[387173327,1758606657087,-400.0,0.00020268,2]
[387173328,1758606657096,-400.0,0.00020268,2]
[387173329,1758606657106,-400.0,0.00020268,2]
[387173330,1758606657115,-400.0,0.00020268,2]
[387173331,1758606657124,-803.52,0.00020268,2]
[387173332,1758606657134,-623.72,0.00020268,2]
[387173333,1758606657143,-758.11,0.00020268,2]
[387173334,1758606657152,-400.0,0.00020268,2]
[387173335,1758606657161,-400.0,0.00020268,2]
[387173336,1758606657170,-944.55,0.00020268,2]
[387173337,1758606657179,-887.18,0.00020268,2]
[387173338,1758606657188,-1000.0,0.00020269,2]
[387173339,1758606657198,-400.0,0.00020269,2]
[387173340,1758606657207,-400.0,0.00020269,2]
[387173341,1758606657216,-400.0,0.00020269,2]
[387173342,1758606657225,-400.0,0.00020269,2]
[387173343,1758606657234,-400.0,0.00020269,2]
[387173344,1758606657243,-400.0,0.00020269,2]
[387173345,1758606657252,-400.0,0.00020269,2]
[387173346,1758606657261,-400.0,0.00020269,2]
[387173347,1758606657270,-400.0,0.00020269,2]
[387173348,1758606657280,-400.0,0.00020269,2]
[387173349,1758606657289,-400.0,0.00020269,2]
[387173350,1758606657299,-400.0,0.00020269,2]
[387173351,1758606657307,-290.74444255,0.00020269,2]
[387173352,1758606657317,-400.0,0.00020269,2]
[387173353,1758606657326,-400.0,0.00020269,2]
[387173354,1758606657335,-400.0,0.00020269,2]
[387173355,1758606657345,-400.0,0.00020269,2]
[387173356,1758606657354,-400.0,0.00020269,2]
[387173357,1758606657363,-400.0,0.00020269,2]
[387173358,1758606657372,-400.0,0.00020269,2]
[387173359,1758606657382,-427.34892354,0.00020269,2]
[387173360,1758606657392,-401.84527137,0.00020269,2]
[387173361,1758606657401,-400.0,0.00020269,2]
[387173362,1758606657410,-401.93638826,0.00020269,2]
[387173363,1758606657419,-400.0,0.00020269,2]
[387173364,1758606657428,-400.0,0.00020269,2]
[387173365,1758606657437,-400.0,0.00020269,2]
[387173366,1758606657450,-400.0,0.00020269,2]
[387173367,1758606657460,-400.0,0.00020269,2]
[387173368,1758606657469,-400.0,0.00020269,2]
[387173369,1758606657479,-400.0,0.00020269,2]
[387173370,1758606657488,-400.0,0.00020269,2]
[387173371,1758606657497,-400.0,0.00020269,2]
[387173372,1758606657507,-400.0,0.00020269,2]
[387173373,1758606657516,-400.0,0.00020269,2]
[387173374,1758606657525,-400.0,0.00020269,2]
[387173375,1758606657535,-560.23,0.00020269,2]
[387173376,1758606657544,-400.0,0.00020269,2]
[387173377,1758606657553,-400.0,0.00020269,2]
[387173378,1758606657563,-400.0,0.00020269,2]
[387173379,1758606657572,-400.0,0.00020269,2]
[387173380,1758606657581,-400.0,0.00020269,2]
[387173381,1758606657591,-400.0,0.00020269,2]
[387173382,1758606657601,-400.0,0.00020269,2]
[387173383,1758606657610,-400.0,0.00020269,2]
[387173384,1758606657620,-400.0,0.00020269,2]
[387173385,1758606657629,-500.0,0.00020269,2]
[387173386,1758606657638,-502.61,0.00020269,2]
[387173387,1758606657647,-694.79,0.00020269,2]
[387173388,1758606657657,-500.0,0.00020269,2]
[387173389,1758606657667,-500.0,0.00020269,2]
[387173390,1758606657677,-1317.09,0.00020269,2]
[387173391,1758606657686,-1372.63,0.00020269,2]
[387173392,1758606657696,-943.76,0.00020269,2]
[387173393,1758606657706,-400.0,0.00020269,2]
[387173394,1758606657723,-400.0,0.00020269,2]
[387173395,1758606657741,-400.0,0.00020269,2]
[387173396,1758606657750,-543.44,0.00020269,2]
[387173397,1758606657770,-867.38,0.00020269,2]
[387173398,1758606657780,-400.0,0.00020269,2]
[387173399,1758606657789,-400.0,0.00020269,2]
[387173400,1758606657802,-1566.28,0.00020269,2]
[387173401,1758606657811,-150.0,0.0002027,2]
[387173402,1758606657821,-150.0,0.0002027,2]
[387173403,1758606657830,-500.0,0.0002027,2]
[387173404,1758606657840,-500.0,0.0002027,2]
[387173405,1758606657849,-150.0,0.0002027,2]
[387173406,1758606657859,-150.0,0.0002027,2]
[387173407,1758606657868,-150.0,0.0002027,2]
[387173408,1758606657879,-1508.0,0.0002027,2]
[387173409,1758606657889,-500.0,0.0002027,2]
[387173410,1758606657898,-150.0,0.0002027,2]
[387173411,1758606657908,-150.0,0.0002027,2]
[387173412,1758606657917,-500.0,0.0002027,2]
[387173413,1758606657927,-154.29556799,0.0002027,2]
[387173414,1758606657936,-500.0,0.0002027,2]
[387173415,1758606657945,-500.0,0.0002027,2]
[387173416,1758606657954,-500.0,0.0002027,2]
[387173417,1758606657964,-500.0,0.0002027,2]
[387173418,1758606657975,-150.0,0.0002027,2]
[387173419,1758606657985,-500.0,0.0002027,2]
[387173420,1758606657994,-500.0,0.0002027,2]
[387173421,1758606658003,-150.0,0.0002027,2]
[387173422,1758606658013,-466.0,0.0002027,2]
[387173423,1758606658022,-447.0,0.0002027,2]
[387173424,1758606658032,-500.0,0.0002027,2]
[387173425,1758606658041,-403.00746878,0.0002027,2]
[387173426,1758606658050,-400.0,0.0002027,2]
[387173427,1758606658060,-400.0,0.0002027,2]
[387173428,1758606658069,-400.0,0.0002027,2]
[387173429,1758606658078,-400.0,0.0002027,2]
[387173430,1758606658088,-400.0,0.0002027,2]
[387173431,1758606658097,-400.0,0.0002027,2]
[387173432,1758606658106,-400.0,0.0002027,2]
[387173433,1758606658115,-407.53581549,0.0002027,2]
[387173434,1758606658124,-400.0,0.0002027,2]
[387173435,1758606658134,-404.98534983,0.0002027,2]
[387173436,1758606658143,-400.0,0.0002027,2]
[387173437,1758606658152,-403.17,0.0002027,2]
[387173438,1758606658162,-400.0,0.0002027,2]
[387173439,1758606658171,-400.0,0.0002027,2]
[387173440,1758606658181,-400.0,0.0002027,2]
[387173441,1758606658191,-400.0,0.0002027,2]
[387173442,1758606658200,-400.0,0.0002027,2]
[387173443,1758606658210,-400.0,0.0002027,2]
[387173444,1758606658220,-318.43306332,0.0002027,2]
[387173445,1758606658229,-400.0,0.0002027,2]
[387173446,1758606658239,-400.0,0.0002027,2]
[387173447,1758606658251,-400.0,0.0002027,2]
[387173448,1758606658261,-435.42345839,0.0002027,2]
[387173449,1758606658271,-400.0,0.0002027,2]
[387173450,1758606658281,-422.99,0.0002027,2]
[387173451,1758606658291,-400.0,0.0002027,2]
[387173452,1758606658301,-400.0,0.0002027,2]
[387173453,1758606658311,-400.0,0.0002027,2]
[387173454,1758606658320,-400.0,0.0002027,2]
[387173455,1758606658329,-400.0,0.0002027,2]
[387173456,1758606658339,-400.0,0.0002027,2]
[387173457,1758606658350,-400.0,0.0002027,2]
[387173458,1758606658359,-400.0,0.0002027,2]
[387173459,1758606658370,-400.0,0.0002027,2]
[387173460,1758606658379,-269.90699615,0.0002027,2]
[387173461,1758606658389,-406.89275278,0.0002027,2]
[387173462,1758606658399,-400.0,0.0002027,2]
[387173463,1758606658409,-400.0,0.0002027,2]
[387173464,1758606658418,-174.49733801,0.0002027,2]
[387173465,1758606658428,-400.0,0.0002027,2]
[387173466,1758606658438,-400.0,0.0002027,2]
[387173467,1758606658447,-407.95048605,0.0002027,2]
[387173468,1758606658456,-427.06318236,0.0002027,2]
[387173469,1758606658467,-400.0,0.0002027,2]
[387173470,1758606658476,-400.0,0.0002027,2]
[387173471,1758606658486,-405.49383782,0.0002027,2]
[387173472,1758606658496,-400.0,0.0002027,2]
[387173473,1758606658507,-400.0,0.0002027,2]
[387173474,1758606658517,-400.0,0.0002027,2]
[387173475,1758606658528,-400.0,0.0002027,2]
[387173476,1758606658537,-400.0,0.0002027,2]
[387173477,1758606658547,-400.0,0.0002027,2]
[387173478,1758606658557,-400.0,0.0002027,2]
[387173479,1758606658566,-400.0,0.0002027,2]
[387173480,1758606658576,-400.0,0.0002027,2]
[387173481,1758606658586,-402.98651935,0.0002027,2]
[387173482,1758606658595,-400.0,0.0002027,2]
[387173483,1758606658605,-434.8119845,0.0002027,2]
[387173484,1758606658615,-400.0,0.0002027,2]
[387173485,1758606658625,-400.0,0.0002027,2]
[387173486,1758606658634,-400.0,0.0002027,2]
[387173487,1758606658644,-400.0,0.0002027,2]
[387173488,1758606658654,-400.0,0.0002027,2]
[387173489,1758606658663,-400.0,0.0002027,2]
[387173490,1758606658673,-400.0,0.0002027,2]
[387173491,1758606658682,-400.0,0.0002027,2]
[387173492,1758606658692,-400.0,0.0002027,2]
[387173493,1758606658703,-400.0,0.0002027,2]
[387173494,1758606658713,-400.0,0.0002027,2]
[387173495,1758606658722,-400.0,0.0002027,2]
[387173496,1758606658732,-400.0,0.0002027,2]
[387173497,1758606658743,-400.0,0.0002027,2]
[387173498,1758606658755,-400.0,0.0002027,2]
[387173499,1758606658766,-400.0,0.0002027,2]
[387173500,1758606658776,-400.0,0.0002027,2]
[387173501,1758606658786,-400.0,0.0002027,2]
[387173502,1758606658797,-400.0,0.0002027,2]
[387173503,1758606658809,-400.0,0.0002027,2]
[387173504,1758606658819,-400.0,0.0002027,2]
[387173505,1758606658828,-400.0,0.0002027,2]
[387173506,1758606658839,-400.0,0.0002027,2]
[387173507,1758606658848,-400.0,0.0002027,2]
[387173508,1758606658858,-400.0,0.0002027,2]
[387173509,1758606658867,-400.0,0.0002027,2]
[387173510,1758606658879,-400.0,0.0002027,2]
[387173511,1758606658888,-400.0,0.0002027,2]
[387173512,1758606658898,-500.0,0.0002027,14]
[387173513,1758606658907,-400.0,0.0002027,2]
[387173514,1758606658917,-445.64447299,0.0002027,2]
[387173515,1758606658927,-400.0,0.0002027,2]
[387173516,1758606658937,-400.0,0.0002027,2]
[387173517,1758606658947,-400.0,0.0002027,2]
[387173518,1758606658957,-400.0,0.0002027,2]
[387173519,1758606658967,-400.0,0.0002027,2]
[387173520,1758606658977,-400.0,0.0002027,2]
[387173521,1758606658986,-400.0,0.0002027,2]
[387173522,1758606658996,-400.0,0.0002027,2]
[387173523,1758606659006,-400.0,0.0002027,2]
[387173524,1758606659015,-400.0,0.0002027,2]
[387173525,1758606659025,-400.0,0.0002027,2]
[387173526,1758606659034,-400.0,0.0002027,2]
[387173527,1758606659044,-400.0,0.0002027,2]
[387173528,1758606659054,-400.0,0.0002027,2]
[387173529,1758606659064,-400.0,0.0002027,2]
[387173530,1758606659074,-411.68,0.0002027,2]
[387173531,1758606659083,-187.32,0.0002027,2]
[387173532,1758606659094,-400.0,0.0002027,2]
[387173533,1758606659103,-401.48557445,0.0002027,2]
[387173534,1758606659113,-400.0,0.0002027,2]
[387173535,1758606659122,-400.0,0.0002027,2]
[387173536,1758606659132,-400.0,0.0002027,2]
[387173537,1758606659142,-400.0,0.0002027,2]
[387173538,1758606659151,-400.0,0.0002027,2]
[387173539,1758606659161,-400.0,0.0002027,2]
[387173540,1758606659171,-384.9120272,0.0002027,2]
[387173541,1758606659180,-400.0,0.0002027,2]
[387173542,1758606659190,-400.0,0.0002027,2]
[387173543,1758606659200,-400.0,0.0002027,2]
[387173544,1758606659210,-400.0,0.0002027,2]
[387173545,1758606659219,-400.0,0.0002027,2]
[387173546,1758606659228,-400.0,0.0002027,2]
[387173547,1758606659238,-400.0,0.0002027,2]
[387173548,1758606659251,-400.0,0.0002027,2]
[387173549,1758606659261,-400.0,0.0002027,2]
[387173550,1758606659271,-400.0,0.0002027,2]
[387173551,1758606659281,-400.0,0.0002027,2]
[387173552,1758606659290,-403.20392466,0.0002027,2]
[387173553,1758606659300,-400.0,0.0002027,2]
[387173554,1758606659310,-400.0,0.0002027,2]
[387173555,1758606659319,-403.79823293,0.0002027,2]
[387173556,1758606659330,-400.0,0.0002027,2]
[387173557,1758606659339,-400.0,0.0002027,2]
[387173558,1758606659350,-400.0,0.0002027,2]
[387173559,1758606659360,-400.0,0.0002027,2]
[387173560,1758606659370,-400.0,0.0002027,2]
[387173561,1758606659380,-400.0,0.0002027,2]
[387173562,1758606659390,-402.40454772,0.0002027,2]
[387173563,1758606659400,-400.0,0.0002027,2]
[387173564,1758606659411,-402.91587976,0.0002027,2]
[387173565,1758606659420,-400.0,0.0002027,2]
[387173566,1758606659430,-400.0,0.0002027,2]
[387173567,1758606659441,-400.0,0.0002027,2]
[387173568,1758606659453,-400.0,0.0002027,2]
[387173569,1758606659464,-400.0,0.0002027,2]
[387173570,1758606659475,-199.41995415,0.0002027,2]
[387173571,1758606659484,-400.0,0.0002027,2]
[387173572,1758606659494,-404.43313571,0.0002027,2]
[387173573,1758606659504,-400.0,0.0002027,2]
[387173574,1758606659514,-400.0,0.0002027,2]
[387173575,1758606659523,-400.0,0.0002027,2]
[387173576,1758606659533,-400.0,0.0002027,2]
[387173577,1758606659543,-400.0,0.0002027,2]
[387173578,1758606659554,-401.89895464,0.0002027,2]
[387173579,1758606659563,-400.0,0.0002027,2]
[387173580,1758606659573,-400.0,0.0002027,2]
[387173581,1758606659583,-400.0,0.0002027,2]
[387173582,1758606659592,-400.0,0.0002027,2]
[387173583,1758606659602,-400.0,0.0002027,2]
[387173584,1758606659612,-429.92,0.0002027,2]
[387173585,1758606659622,-400.0,0.0002027,2]
[387173586,1758606659632,-404.77080706,0.0002027,2]
[387173587,1758606659642,-400.0,0.0002027,2]
[387173588,1758606659652,-400.0,0.0002027,2]
[387173589,1758606659662,-209.31,0.0002027,2]
[387173590,1758606659672,-157.90914873,0.0002027,2]
[387173591,1758606659682,-400.0,0.0002027,2]
[387173592,1758606659692,-400.0,0.0002027,2]
[387173593,1758606659702,-400.0,0.0002027,2]
[387173594,1758606659712,-400.0,0.0002027,2]
[387173595,1758606659722,-400.0,0.0002027,2]
[387173596,1758606659731,-400.0,0.0002027,2]
[387173597,1758606659741,-400.0,0.0002027,2]
[387173598,1758606659751,-400.0,0.0002027,2]
[387173599,1758606659761,-400.0,0.0002027,2]
[387173600,1758606659770,-400.0,0.0002027,2]